Cogmind - Beta 12 @@@ ROGUE MODE // 2023.05.15 @ 23:29:11 Player: Mr Goldstein Result: Destroyed by Y-54 Guardian with Gatling Laser Performance ------------- Evolutions (3) 1500 Regions Visited (6) 1200 Robots Destroyed (8) 40 Value Destroyed (80) 80 Prototype IDs (0) 0 Alien Tech Used (0) 0 Bonus (200) 200 TOTAL SCORE: 3020 Bonus ------- Pacifist 200 Cogmind --------- Core Integrity 0/700 Matter 251/300 Energy 100/100 System Corruption 5% Temperature Cool (12) Movement Core (50) Location -7/Storage Parts ------- > --- POWER (1) -------- (None) > --- PROPULSION (2) --- (None) > --- UTILITY (8) ------ Machine Analyzer Improved Targeting Computer > --- WEAPON (2) ------- (None) > --- INVENTORY (5) ---- Improved Light Armor Plating Improved Light Armor Plating Mini Grenade Launcher Mini Grenade Launcher Mini Grenade Launcher Peak State ------------ > --- POWER ------------ (None) > --- PROPULSION ------- (None) > --- UTILITY ---------- Machine Analyzer Improved Targeting Computer Improved Targeting Computer Improved Light Armor Plating > --- WEAPON ----------- Improved Datajack > --- INVENTORY -------- Improved Light Armor Plating Improved Light Armor Plating Mini Grenade Launcher Mini Grenade Launcher Mini Grenade Launcher [Rating: 14] Favorites ----------- Power None Propulsion None Utility Improved Targeting Computer Processor Improved Targeting Computer Protection Improved Light Armor Plating Weapon Mini Grenade Launcher Launcher Mini Grenade Launcher Special Melee Weapon Improved Datajack Build | -11 -10 -10 -9 -8 -7 -7 ------- Run | Jun Mat Min Mat Mat Fac Sto Slots Evolved 6 | . . . 2 2 2 . Power . | . . . . . . . Propulsion . | . . . . . . . Utility 6 | . . . 2 2 2 . Weapon . | . . . . . . . Parts Attached 7 | . 2 . 4 . 1 . Power . | . . . . . . . Engine . | . . . . . . . Core . | . . . . . . . Reactor . | . . . . . . . Propulsion . | . . . . . . . Treads . | . . . . . . . Leg . | . . . . . . . Wheel . | . . . . . . . Hover . | . . . . . . . Flight . | . . . . . . . Utility 4 | . 2 . 2 . . . Device . | . . . . . . . Storage . | . . . . . . . Processor 3 | . 2 . 1 . . . Hackware . | . . . . . . . Protection 1 | . . . 1 . . . Artifact . | . . . . . . . Weapon 3 | . . . 2 . 1 . Energy Gun . | . . . . . . . Energy Cannon . | . . . . . . . Ballistic Gun . | . . . . . . . Ballistic Cannon . | . . . . . . . Launcher 2 | . . . 2 . . . Special Weapon . | . . . . . . . Impact Weapon . | . . . . . . . Slashing Weapon . | . . . . . . . Piercing Weapon . | . . . . . . . Special Melee Weapon 1 | . . . . . 1 . Unidentified Prototypes . | . . . . . . . Parts Lost 2 | . . . . . . 2 Power . | . . . . . . . Propulsion . | . . . . . . . Utility 2 | . . . . . . 2 Weapon . | . . . . . . . Highest Loss Streak 1 | . . . . . . 1 To Critical Strikes . | . . . . . . . Average Slot Usage (%) 28 | . 14 28 34 36 30 23 Processor 26 | . 14 28 26 27 23 23 Protection 2 | . . . 6 9 7 . Naked Turns 10 | . 10 . . . . . Heaviest Build 4 | . . . 3 3 4 3 Greatest Support 3 | 3 3 3 3 3 3 3 Greatest Overweight (x) 1 | . . . . . 1 . Average Overweight (x) . | . . . . . . . Largest Inventory Capacity 5 | 5 5 5 5 5 5 5 Average Capacity 5 | 5 5 5 5 5 5 5 Most Carried 5 | . 5 5 5 5 5 5 Average Carried 4 | . 3 4 4 5 5 5 Final Capacity 5 | 5 5 5 5 5 5 5 Final Carried 5 | . 5 5 5 5 5 5 Class Distribution -------------------- 100% | Mutant Dominant Class ---------------- Mutant | -10/Materials Mutant | -10/Mines Mutant | -9/Materials Mutant | -8/Materials Mutant | -7/Factory Mutant | -7/Storage Resources | -11 -10 -10 -9 -8 -7 -7 ----------- Run | Jun Mat Min Mat Mat Fac Sto Matter Collected 230 | 200 . 20 10 . . . Remotely . | . . . . . . . Salvage Created 42 | . . . 42 . . . Parts 12 | . . . 12 . . . Haulers Intercepted . | . . . . . . . Recyclers Shooed . | . . . . . . . Parts Field Recycled . | . . . . . . . Retrieved Matter . | . . . . . . . Parts Self-Destructed . | . . . . . . . Prevented . | . . . . . . . Kills | -11 -10 -10 -9 -8 -7 -7 ------- Run | Jun Mat Min Mat Mat Fac Sto Combat Hostiles Destroyed 8 | . . . 8 . . . AOE 8 | . . . 8 . . . Classes Destroyed 1 | . . . 1 . . . Swarmer 8 | . . . 8 . . . Best Kill Streak 4 | . . . 4 . . . Combat Bots Only 4 | . . . 4 . . . Max Kills in Single Turn 4 | . . . 4 . . . Gunslinging . | . . . . . . . Exploded 4 | . . . 4 . . . Melee . | . . . . . . . Uniques/NPCs Destroyed . | . . . . . . . Combat | -11 -10 -10 -9 -8 -7 -7 -------- Run | Jun Mat Min Mat Mat Fac Sto Damage Taken 1117 | . . 67 162 90 78 720 Core 883 | . . 67 74 37 61 644 Absorbed by Shields 92 | . . . . . . 92 Core Remaining (%) 86 | 100 . 73 81 93 . . Volleys Fired 4 | . . . 4 . . . Largest 1 | . . . 1 . . . Hottest 30 | . . . 30 . . . Shots Fired 4 | . . . 4 . . . Gun . | . . . . . . . Cannon . | . . . . . . . Launcher 4 | . . . 4 . . . Special . | . . . . . . . Kinetic . | . . . . . . . Thermal . | . . . . . . . Explosive 4 | . . . 4 . . . Electromagnetic . | . . . . . . . Robot Hit Streak 2 | . . . 2 . . . Robot Miss Streak . | . . . . . . . Penetration Max . | . . . . . . . Secondary Targets . | . . . . . . . Shots Hit Robots 2 | . . . 2 . . . Core Hits 7 | . . . 7 . . . Critical Kills . | . . . . . . . Critical Parts Destroyed . | . . . . . . . Critical Strikes . | . . . . . . . Melee Attacks . | . . . . . . . Impact . | . . . . . . . Slashing . | . . . . . . . Piercing . | . . . . . . . Sneak Attacks . | . . . . . . . Combat Hostiles . | . . . . . . . Follow-up Attacks . | . . . . . . . Damage Inflicted 559 | . . . 509 12 11 27 Guns . | . . . . . . . Cannons . | . . . . . . . Explosions 509 | . . . 509 . . . Melee . | . . . . . . . Ramming 50 | . . . . 12 11 27 Kinetic . | . . . . . . . Thermal . | . . . . . . . Explosive 509 | . . . 509 . . . Electromagnetic . | . . . . . . . Impact . | . . . . . . . Slashing . | . . . . . . . Piercing . | . . . . . . . Highest Corruption 5 | . . . . . . 5 Average Corruption 5 | . . . . . . 5 Corruption Purged . | . . . . . . . Corruption Blocked . | . . . . . . . Effects 1 | . . . . . . 1 Message Errors 1 | . . . . . . 1 Overload Shots . | . . . . . . . Overflow Damage 11 | . . . 11 . . . Projectiles . | . . . . . . . Explosions 11 | . . . 11 . . . Melee . | . . . . . . . Knockbacks . | . . . . . . . Impact . | . . . . . . . Kinetic . | . . . . . . . Secondary . | . . . . . . . Self-Inflicted Damage 24 | . . . . 6 5 13 Shots . | . . . . . . . Rammed 7 | . . . . 1 3 3 Targets Rammed 7 | . . . . 1 3 3 Kicked . | . . . . . . . Crushed . | . . . . . . . Highest Temperature 10 | . . . 10 . . . Average Temperature 5 | . . . 5 . . . Received Heat Transfer 511 | . . 36 57 45 18 355 Siege Activations . | . . . . . . . Robots Corrupted . | . . . . . . . Combat Hostiles . | . . . . . . . Parts Fried . | . . . . . . . Impact Corruptions . | . . . . . . . Robots Melted . | . . . . . . . Combat Hostiles . | . . . . . . . Parts Melted . | . . . . . . . Heat Transferred . | . . . . . . . Parts Sabotaged . | . . . . . . . Parts Stolen . | . . . . . . . Parts Stripped . | . . . . . . . Power Chain Reactions . | . . . . . . . Missiles Intercepted . | . . . . . . . Alert | -11 -10 -10 -9 -8 -7 -7 ------- Run | Jun Mat Min Mat Mat Fac Sto Peak Influence 246 | . 15 5 246 134 105 127 Initial 103 | . . 5 1 103 60 47 Average 45 | . 3 5 117 125 75 88 Maximum Alert Level 1 | . . . 1 . . . Low Security (%) 97 | 100 100 100 82 100 100 100 Level 1 2 | . . . 17 . . . Level 2 . | . . . . . . . Level 3 . | . . . . . . . Level 4 . | . . . . . . . Level 5 . | . . . . . . . High Security . | . . . . . . . Max Security . | . . . . . . . Squads Dispatched 5 | . 1 . 2 1 1 . Investigation 3 | . . . 1 1 1 . Extermination . | . . . . . . . Reinforcement 2 | . 1 . 1 . . . Assault . | . . . . . . . Garrison . | . . . . . . . Intercept . | . . . . . . . Searches Triggered . | . . . . . . . Construction Impeded . | . . . . . . . Haulers Reinforced . | . . . . . . . Active Scanning Responses . | . . . . . . . Cargo Convoy Interrupts . | . . . . . . . Stealth | -11 -10 -10 -9 -8 -7 -7 --------- Run | Jun Mat Min Mat Mat Fac Sto Distress Signals 5 | . . . 2 . 1 2 Communications Jammed . | . . . . . . . Distress Signals . | . . . . . . . Times Spotted 48 | . 1 4 16 10 4 13 Peak Tracking Total 11 | . 1 4 11 10 2 10 Tactical Retreats 1 | . . . . . . 1 Traps | -11 -10 -10 -9 -8 -7 -7 ------- Run | Jun Mat Min Mat Mat Fac Sto Traps Triggered 2 | . . . . . . 2 Indirectly . | . . . . . . . Trap Hack Attempts . | . . . . . . . Triggered . | . . . . . . . Disarmed . | . . . . . . . Reprogrammed . | . . . . . . . Reused . | . . . . . . . Traps Extracted . | . . . . . . . Installed . | . . . . . . . Triggered . | . . . . . . . Machines | -11 -10 -10 -9 -8 -7 -7 ---------- Run | Jun Mat Min Mat Mat Fac Sto Machines Disabled . | . . . . . . . Max in Single Turn . | . . . . . . . Machines Repaired . | . . . . . . . Machines Sabotaged . | . . . . . . . Overloaded Fab Kills . | . . . . . . . Hacking | -11 -10 -10 -9 -8 -7 -7 --------- Run | Jun Mat Min Mat Mat Fac Sto Machines Accessed 6 | . . 1 2 1 2 . Terminals 5 | . . . 2 1 2 . Fabricators . | . . . . . . . Repair Stations . | . . . . . . . Recycling Units . | . . . . . . . Scanalyzers . | . . . . . . . Garrison Access . | . . . . . . . Total Hacks 17 | . . 1 4 5 7 . Successful 3 | . . 1 . 2 . . Failed 14 | . . . 4 3 7 . Catastrophic 6 | . . . 2 2 2 . Database Lockouts . | . . . . . . . Manual 11 | . . . 5 1 5 . Terminals 16 | . . . 4 5 7 . Fabricators . | . . . . . . . Repair Stations . | . . . . . . . Recycling Units . | . . . . . . . Scanalyzers . | . . . . . . . Garrison Access . | . . . . . . . Terminal Hacks 3 | . . 1 . 2 . . Open Door 1 | . . 1 . . . . Level Access Points 1 | . . . . 1 . . Branch Access Points 1 | . . . . 1 . . Fabricator Hacks . | . . . . . . . Repair Station Hacks . | . . . . . . . Recycling Unit Hacks . | . . . . . . . Scanalyzer . | . . . . . . . Garrison Access Hacks . | . . . . . . . Unauthorized Hacks . | . . . . . . . Terminals . | . . . . . . . Fabricators . | . . . . . . . Repair Stations . | . . . . . . . Recycling Units . | . . . . . . . Scanalyzers . | . . . . . . . Garrison Access . | . . . . . . . Data Cores Recovered . | . . . . . . . Used . | . . . . . . . Hacking Detections 5 | . . . 2 1 2 . Full Trace Events 4 | . . . 2 1 1 . Feedback Events . | . . . . . . . Feedback Blocked . | . . . . . . . Robot Schematics Acquired . | . . . . . . . Robots Built . | . . . . . . . Authchips . | . . . . . . . Time . | . . . . . . . Total Robot Build Rating . | . . . . . . . Part Schematics Acquired . | . . . . . . . Parts Built . | . . . . . . . Authchips . | . . . . . . . Time . | . . . . . . . Total Part Build Rating . | . . . . . . . Parts Repaired . | . . . . . . . Time . | . . . . . . . Parts Recycled . | . . . . . . . Recycled Matter . | . . . . . . . Retrieved Matter . | . . . . . . . Retrieved Components . | . . . . . . . Parts Scanalyzed . | . . . . . . . Part Schematics Acquired . | . . . . . . . Parts Damaged . | . . . . . . . Bothacking | -11 -10 -10 -9 -8 -7 -7 ------------ Run | Jun Mat Min Mat Mat Fac Sto Used RIF Installer . | . . . . . . . Robots Hacked . | . . . . . . . Non-combat . | . . . . . . . Combat . | . . . . . . . Robot Hacks Applied . | . . . . . . . Relay Couplers Released . | . . . . . . . Fabnet Peak Effective % . | . . . . . . . Robots Rewired . | . . . . . . . Allies Hacked . | . . . . . . . Hacks Repelled . | . . . . . . . Allies | -11 -10 -10 -9 -8 -7 -7 -------- Run | Jun Mat Min Mat Mat Fac Sto Total Allies . | . . . . . . . Largest Group . | . . . . . . . Highest-Rated Group . | . . . . . . . Highest-Rated Ally . | . . . . . . . Total Orders . | . . . . . . . Ally Attacks . | . . . . . . . Total Damage . | . . . . . . . Kills . | . . . . . . . Allies Corrupted . | . . . . . . . Allies Melted . | . . . . . . . Intel | -11 -10 -10 -9 -8 -7 -7 ------- Run | Jun Mat Min Mat Mat Fac Sto Robot Analysis Total . | . . . . . . . Derelict Logs Recovered 1 | . . 1 . . . . Drone Launches . | . . . . . . . Drone Recoveries . | . . . . . . . Exploration | -11 -10 -10 -9 -8 -7 -7 ------------- Run | Jun Mat Min Mat Mat Fac Sto Turns Passed 752 | 10 23 383 89 36 90 121 Spaces Moved 749 | 21 30 112 146 70 167 203 Core 749 | 21 30 112 146 70 167 203 Treads . | . . . . . . . Legs . | . . . . . . . Wheels . | . . . . . . . Hover . | . . . . . . . Flight . | . . . . . . . Fastest Speed 50 | 50 50 50 50 50 50 50 Average Speed 50 | 50 50 50 50 50 50 50 Slowest Speed 100 | 50 50 50 50 50 100 50 Overloaded Moves . | . . . . . . . Propulsion Burnouts . | . . . . . . . Robots Hopped . | . . . . . . . Cave-ins Triggered . | . . . . . . . Exploration Rate (%) 20 | 3 7 41 27 18 6 39 Regions Visited 6 Branch Regions 2 Pre-discovered Areas 1 | . . 1 . . . . Known Exits Taken 1 | . . . . 1 . . Unknown Exits Taken 5 | 1 1 1 1 . 1 . Scrap Searched . | . . . . . . . Spaces Dug 10 | . . . 10 . . . Terrain Destroyed 22 | . . . 22 . . . Melee . | . . . . . . . Projectile . | . . . . . . . AOE 22 | . . . 22 . . . Terrain Rammed . | . . . . . . . Walls Destroyed . | . . . . . . . Machines Disabled . | . . . . . . . Actions | -11 -10 -10 -9 -8 -7 -7 --------- Run | Jun Mat Min Mat Mat Fac Sto Total 1115 | 20 36 438 158 70 171 222 Wait 325 | . . 325 . . . . Move 744 | 20 29 111 145 70 166 203 Hop . | . . . . . . . Pick Up 8 | . 5 1 2 . . . Fast Attach 4 | . 2 . 1 . 1 . Attach 3 | . . . 3 . . . Detach 2 | . . . 2 . . . Swap . | . . . . . . . Drop 3 | . . 1 1 . 1 . Fire 4 | . . . 4 . . . Melee . | . . . . . . . Ram 6 | . . . . . 3 3 Kick . | . . . . . . . Crush . | . . . . . . . Escape Stasis 16 | . . . . . . 16 Rewire . | . . . . . . . Trap . | . . . . . . . Miscellaneous . | . . . . . . . Route ------- -11/Junkyard -10/Materials -10/Mines -9/Materials -8/Materials (discovered 3 exits: *Fac x3) -7/Factory -7/Storage (discovered 1 exit: [*Fac]) History --------- Turn | Location | Event 4 | -11/Junkyard | Discovered new exit (range 15) 11 | -11/Junkyard | Entered Materials 29 | -10/Materials | Discovered new exit (range 12) 34 | -10/Materials | Entered Mines 39 | -10/Mines | YI-UF0 nonchalantly dropped a Grenade Launcher on the ground 66 | -10/Mines | Excavation squad dispatched 66 | -10/Mines | A large section of the Mines collapsed 310 | -10/Mines | Build established: Mutant 316 | -10/Mines | Excavation squad dispatched 397 | -10/Mines | Discovered new exit (range 11) 408 | -10/Mines | Met a Derelict who couldn't figure out how to use a Trap Extractor 417 | -10/Mines | Entered Materials 417 | -9/Materials | Evolved 2 slots: Utility x2 500 | -9/Materials | Discovered new exit (range 14) 506 | -9/Materials | Entered another Materials area 506 | -8/Materials | Evolved 2 slots: Utility x2 519 | -8/Materials | Identified exit to Factory 542 | -8/Materials | Entered Factory 542 | -7/Factory | Evolved 2 slots: Utility x2 622 | -7/Factory | Discovered new exit (range 8) 632 | -7/Factory | Entered Storage 685 | -7/Storage | Discovered new exit (range 16) 712 | -7/Storage | Core integrity fell below 50% 726 | -7/Storage | Core integrity fell below 20% 753 | -7/Storage | Destroyed by Y-54 Guardian with Gatling Laser Last Messages --------------- 00710_ Field strength at 88. 00711_ Critical hit (Burn: +27). 00711_ Field strength at 78. 00712_ Field strength at 67. 00713_ Field strength at 57. 00714_ Field strength at 47. 00715_ Field strength at 36. 00716_ Critical hit (Burn: +25). 00716_ Field strength at 22. 00717_ Field strength at 11. 00717_ Stasis field depleted. 00725_ K-01 Serf collects debris. 00728_ Critical hit (Burn: +37). 00729_ K-01 Serf cleans the Compression Vault. 00748_ A-02 Transporter destroyed. 00751_ Slammed into Y-54 Guardian. 00751_ Imp. Targeting Computer destroyed. 00751_ System corrupted by crushing effect (+5). 00752_ Z=DH